fUST/lending_fUST_20260111
["ID","MTS","AMOUNT","RATE_DAILY","PERIOD"]
[401319378,1768133439081,-300.0,8.702e-05,2]
[401319379,1768133439091,-542.0,8.702e-05,2]
[401319380,1768133439102,-220.89525663,8.702e-05,2]
[401319381,1768133439112,-9469.79458256,8.703e-05,2]
[401319382,1768133439126,-990530.20541744,8.703e-05,2]
[401319383,1768133439136,-500.0,8.801e-05,2]
[401319384,1768133439146,-50000.0,8.802e-05,2]
[401319385,1768133439157,-500.0,8.803e-05,2]
[401319386,1768133439167,-163.14839871,8.803e-05,2]
[401319387,1768133439177,-2545.0,8.803e-05,2]
[401319388,1768133439186,-337.35985221,8.803e-05,2]
[401319389,1768133439197,-455.65,8.803e-05,2]
[401319390,1768133439207,-500.0,8.804e-05,2]
[401319391,1768133439217,-500.0,8.804e-05,2]
[401319392,1768133439227,-500.0,8.804e-05,2]
[401319393,1768133439237,-500.0,8.804e-05,2]
[401319394,1768133439247,-500.0,8.804e-05,2]
[401319395,1768133439257,-500.0,8.804e-05,2]
[401319396,1768133439267,-500.0,8.804e-05,2]
[401319397,1768133439277,-500.0,8.804e-05,2]
[401319398,1768133439287,-500.0,8.804e-05,2]
[401319399,1768133439297,-500.0,8.804e-05,2]
[401319400,1768133439307,-500.0,8.804e-05,2]
[401319401,1768133439317,-500.0,8.804e-05,2]
[401319402,1768133439326,-500.0,8.804e-05,2]
[401319403,1768133439336,-500.0,8.804e-05,2]
[401319404,1768133439346,-228.80134121,8.804e-05,2]
[401319405,1768133439356,-500.0,8.94e-05,2]
[401319406,1768133439365,-2545.0,8.94e-05,2]
[401319407,1768133439375,-2870.56440792,8.941e-05,2]
[401319408,1768133439384,-300.0,8.98e-05,2]
[401319409,1768133439394,-300.0,8.98e-05,2]
[401319410,1768133439404,-300.0,8.98e-05,2]
[401319411,1768133439415,-300.0,8.98e-05,2]
[401319412,1768133439425,-300.0,8.98e-05,2]
[401319413,1768133439435,-300.0,8.98e-05,2]
[401319414,1768133439445,-300.0,8.98e-05,2]
[401319415,1768133439455,-300.0,8.98e-05,2]
[401319416,1768133439465,-300.0,8.98e-05,2]
[401319417,1768133439474,-300.0,8.98e-05,2]
[401319418,1768133439485,-300.0,8.98e-05,2]
[401319419,1768133439495,-300.0,8.98e-05,2]
[401319420,1768133439504,-300.0,8.98e-05,2]
[401319421,1768133439514,-300.0,8.98e-05,2]
[401319422,1768133439523,-300.0,8.98e-05,2]
[401319423,1768133439532,-600.0,8.98e-05,2]
[401319424,1768133439541,-500.0,9.075e-05,2]
[401319425,1768133439551,-500.0,9.077e-05,2]
[401319426,1768133439563,-2545.0,9.077e-05,2]
[401319427,1768133439573,-455.65,9.077e-05,2]
[401319428,1768133439583,-211.79,9.1e-05,2]
[401319429,1768133439593,-500.0,9.214e-05,2]
[401319430,1768133439603,-2545.0,9.214e-05,2]
[401319431,1768133439613,-500.0,9.349e-05,2]
[401319432,1768133439623,-500.0,9.351e-05,2]
[401319433,1768133439634,-2545.0,9.351e-05,2]
[401319434,1768133439644,-455.65,9.351e-05,2]
[401319435,1768133439654,-500.0,9.488e-05,2]
[401319436,1768133439663,-2545.0,9.488e-05,2]
[401319437,1768133439672,-420.0,9.572e-05,2]
[401319438,1768133439682,-211.79,9.6e-05,2]
[401319439,1768133439691,-38377.42955083,9.61e-05,2]
[401319440,1768133439701,-500.0,9.623e-05,2]
[401319441,1768133439711,-500.0,9.625e-05,2]
[401319442,1768133439722,-2545.0,9.625e-05,2]
[401319443,1768133439733,-455.65,9.625e-05,2]
[401319444,1768133439742,-500.0,9.762e-05,2]
[401319445,1768133439752,-2545.0,9.762e-05,2]
[401319446,1768133439762,-720.0,9.878e-05,2]
[401319447,1768133439772,-500.0,9.897e-05,2]
[401319448,1768133439781,-623.15407208,9.899e-05,2]
[401319449,1768133439791,-2545.0,9.899e-05,2]
[401319450,1768133439806,-455.65900327,9.899e-05,2]
[401319451,1768133439826,-2545.0,0.00010036,2]
[401319452,1768133439839,-500.0,0.00010071,2]
[401319453,1768133439852,-218.44,0.00010071,2]
[401319454,1768133439982,-218.44,0.00010071,2]
[401319455,1768133439992,-218.44,0.00010071,2]
[401319456,1768133440001,-218.44,0.00010071,2]
[401319457,1768133440010,-218.44,0.00010071,2]
[401319458,1768133440019,-218.44,0.00010071,2]
[401319459,1768133440028,-218.45,0.00010071,2]
[401319460,1768133440038,-211.79,0.000101,2]
[401319461,1768133440047,-500.0,0.00010171,2]
[401319462,1768133440057,-2545.0,0.00010173,2]
[401319463,1768133440066,-2545.0,0.0001031,2]
[401319464,1768133440075,-500.0,0.00010445,2]
[401319465,1768133440084,-2545.0,0.00010447,2]
[401319466,1768133440094,-587.0,0.00010529,2]
[401319467,1768133440103,-2545.0,0.00010584,2]
[401319468,1768133440112,-211.79,0.000106,2]
[401319469,1768133440121,-260.65640282,0.00010702,2]
[401319470,1768133440130,-500.0,0.00010719,2]
[401319471,1768133440139,-2545.0,0.00010721,2]
[401319472,1768133440149,-2545.0,0.00010858,2]
[401319473,1768133440158,-864.0,0.00010865,2]
[401319474,1768133440168,-500.0,0.00010926,2]
[401319475,1768133440177,-500.0,0.00010926,2]
[401319476,1768133440187,-500.0,0.00010926,2]
[401319477,1768133440196,-500.0,0.00010926,2]
[401319478,1768133440206,-500.0,0.00010926,2]
[401319479,1768133440215,-154.30171575,0.00010926,2]
[401319480,1768133440224,-500.0,0.00010993,2]
[401319481,1768133440235,-2545.0,0.00010995,2]
[401319483,1768133440244,-151.0,0.00011,2]
[401319484,1768133440254,-151.0,0.00011,2]
[401319485,1768133440263,-500.0,0.00011063,2]
[401319486,1768133440273,-500.0,0.00011063,2]
[401319487,1768133440283,-500.0,0.00011063,2]
[401319488,1768133440292,-201.95802809,0.00011063,2]
[401319489,1768133440302,-500.0,0.00011063,2]
[401319490,1768133440311,-500.0,0.00011063,2]
[401319491,1768133440320,-2545.0,0.00011132,2]
[401319492,1768133440330,-223.56062369,0.000112,2]
[401319493,1768133440339,-500.0,0.000112,2]
[401319494,1768133440348,-500.0,0.000112,2]
[401319495,1768133440358,-500.0,0.000112,2]
[401319496,1768133440367,-500.0,0.000112,2]
[401319497,1768133440377,-211.79,0.000112,2]
[401319498,1768133440386,-448.52259365,0.00011267,2]
[401319499,1768133440397,-2545.0,0.00011269,2]
[401319500,1768133440408,-500.0,0.00011337,2]
[401319501,1768133440418,-300.0,0.00011337,2]
[401319502,1768133440428,-250.0,0.00011337,2]
[401319503,1768133440438,-500.0,0.00011337,2]
[401319504,1768133440447,-2545.0,0.00011406,2]
[401319505,1768133440456,-500.00000003,0.00011474,2]
[401319506,1768133440465,-500.0,0.00011474,2]
[401319507,1768133440475,-250.0,0.00011499,2]
[401319508,1768133440485,-2545.0,0.00011543,2]
[401319509,1768133440495,-823.0,0.00011582,2]
[401319510,1768133440504,-500.0,0.00011611,2]
[401319511,1768133440514,-2553.0,0.0001168,2]
[401319512,1768133440523,-211.79,0.000117,2]
[401319513,1768133440532,-500.0,0.00011748,2]
[401319514,1768133440542,-500.0,0.00011885,2]
[401319515,1768133440552,-1000.0,0.00011952,2]
[401319516,1768133440561,-500.0,0.00012022,2]
[401319517,1768133440571,-500.0,0.00012159,2]
[401319519,1768133440583,-211.79,0.000122,2]
[401319521,1768133440592,-500.0,0.00012296,2]
[401319523,1768133440601,-1432.63,0.00012329,2]
[401319525,1768133440610,-1193.86,0.00012329,2]
[401319527,1768133440619,-994.89,0.00012329,2]
[401319529,1768133440629,-829.07,0.00012329,2]
[401319530,1768133440638,-690.89,0.00012329,2]
[401319532,1768133440648,-575.74,0.00012329,2]
[401319534,1768133440658,-479.79,0.00012329,2]
[401319536,1768133440667,-399.82,0.00012329,2]
[401319538,1768133440676,-333.19,0.00012329,2]
[401319540,1768133440687,-277.65,0.00012329,2]
[401319542,1768133440697,-231.38,0.00012329,2]
[401319544,1768133440706,-192.82,0.00012329,2]
[401319546,1768133440716,-160.68,0.00012329,2]
[401319548,1768133440725,-803.42,0.00012329,2]
[401319550,1768133440735,-775.60585038,0.00012329,2]
[401319552,1768133440744,-775.60585038,0.00012329,2]
[401319554,1768133440754,-775.60585038,0.00012329,2]
[401319556,1768133440763,-775.60585038,0.00012329,2]
[401319558,1768133440773,-775.60585038,0.00012329,2]
[401319560,1768133440782,-775.60585038,0.00012329,2]
[401319562,1768133440791,-775.60585038,0.00012329,2]
[401319564,1768133440801,-775.60585038,0.00012329,2]
[401319566,1768133440812,-775.60585038,0.00012329,2]
[401319568,1768133440822,-775.60585038,0.00012329,2]
[401319570,1768133440831,-775.60585038,0.00012329,2]
[401319572,1768133440841,-775.60585038,0.00012329,2]
[401319574,1768133440851,-775.60585038,0.00012329,2]
[401319576,1768133440861,-775.60585038,0.00012329,2]
[401319578,1768133440871,-775.60585038,0.00012329,2]
[401319580,1768133440881,-775.60585038,0.00012329,2]
[401319582,1768133440891,-775.60585038,0.00012329,2]
[401319584,1768133440902,-775.60585038,0.00012329,2]
[401319586,1768133440911,-775.60585038,0.00012329,2]
[401319588,1768133440921,-775.60585038,0.00012329,2]
[401319590,1768133440931,-775.60585038,0.00012329,2]
[401319592,1768133440941,-775.60585038,0.00012329,2]
[401319594,1768133440950,-775.60585038,0.00012329,2]
[401319596,1768133440959,-775.60585038,0.00012329,2]
[401319597,1768133440970,-775.60585038,0.00012329,2]
[401319599,1768133440979,-775.60585038,0.00012329,2]
[401319601,1768133440989,-775.60585038,0.00012329,2]
[401319603,1768133440999,-775.60585038,0.00012329,2]
[401319605,1768133441008,-775.60585038,0.00012329,2]
[401319607,1768133441018,-775.60585038,0.00012329,2]
[401319609,1768133441027,-775.60585038,0.00012329,2]
[401319611,1768133441037,-775.60585038,0.00012329,2]
[401319613,1768133441046,-775.60585038,0.00012329,2]
[401319615,1768133441055,-775.60585038,0.00012329,2]
[401319617,1768133441065,-775.60585038,0.00012329,2]
[401319619,1768133441074,-775.60585038,0.00012329,2]
[401319621,1768133441083,-775.60585038,0.00012329,2]
[401319623,1768133441093,-775.60585038,0.00012329,2]
[401319625,1768133441103,-775.60585038,0.00012329,2]
[401319627,1768133441113,-775.60585038,0.00012329,2]
[401319629,1768133441123,-775.60585038,0.00012329,2]
[401319631,1768133441133,-775.60585038,0.00012329,2]
[401319633,1768133441142,-775.60585038,0.00012329,2]
[401319635,1768133441152,-775.60585038,0.00012329,2]
[401319637,1768133441161,-775.60585038,0.00012329,2]
[401319639,1768133441171,-775.60585038,0.00012329,2]
[401319641,1768133441180,-775.60585038,0.00012329,2]
[401319643,1768133441190,-775.60585038,0.00012329,2]
[401319645,1768133441200,-775.60585038,0.00012329,2]
[401319647,1768133441210,-775.60585038,0.00012329,2]
[401319649,1768133441219,-775.60585038,0.00012329,2]
[401319651,1768133441229,-775.60585038,0.00012329,2]
[401319653,1768133441239,-775.60585038,0.00012329,2]
[401319655,1768133441248,-775.60585038,0.00012329,2]
[401319657,1768133441257,-500.0,0.00012433,2]
[401319659,1768133441266,-500.0,0.0001257,2]
[401319661,1768133441276,-211.79,0.000127,2]
[401319663,1768133441285,-300.41754901,0.00012702,2]
[401319665,1768133441295,-500.0,0.00012707,2]
[401319667,1768133441304,-1152.0,0.0001274,2]
[401319669,1768133441314,-152.72644825,0.00012844,2]
[401319671,1768133441323,-20291.95582995,0.000129,2]
[401319673,1768133441332,-20291.95582995,0.000129,2]
[401319674,1768133441341,-20291.95582991,0.000129,2]
[401319676,1768133441349,-20291.95582991,0.000129,2]
[401319678,1768133441359,-1000.0,0.00013147,2]
[401319680,1768133441368,-244.0,0.00013147,2]
[401319682,1768133441378,-211.79,0.000132,2]
[401319684,1768133441387,-500.0,0.00013273,2]
[401319686,1768133441396,-500.0,0.00013273,2]
[401319688,1768133441406,-500.0,0.00013273,2]
[401319690,1768133441415,-500.0,0.00013273,2]
[401319692,1768133441425,-500.0,0.00013273,2]
[401319694,1768133441434,-500.0,0.00013273,2]
[401319696,1768133441445,-500.0,0.00013273,2]
[401319698,1768133441454,-500.0,0.00013273,2]
[401319700,1768133441463,-500.0,0.00013273,2]
[401319702,1768133441473,-500.0,0.00013273,2]
[401319704,1768133441483,-500.0,0.00013273,2]
[401319706,1768133441493,-500.0,0.00013273,2]
[401319708,1768133441501,-500.0,0.00013273,2]
[401319710,1768133441511,-500.0,0.00013273,2]
[401319712,1768133441520,-500.24269708,0.00013273,2]
[401319714,1768133441529,-500.0,0.00013273,2]
[401319716,1768133441538,-500.0,0.00013273,2]
[401319718,1768133441547,-500.0,0.00013273,2]
[401319720,1768133441557,-500.0,0.00013273,2]
[401319722,1768133441569,-500.0,0.00013273,2]
[401319724,1768133441578,-500.0,0.00013273,2]
[401319726,1768133441587,-500.0,0.00013273,2]
[401319728,1768133441597,-500.0,0.00013273,2]
[401319730,1768133441608,-500.0,0.00013273,2]
[401319732,1768133441618,-500.0,0.00013273,2]
[401319734,1768133441627,-500.0,0.00013273,2]
[401319736,1768133441636,-500.0,0.00013273,2]
[401319738,1768133441647,-500.0,0.00013273,2]
[401319740,1768133441657,-500.0,0.00013273,2]
[401319742,1768133441666,-501.02698451,0.00013273,2]
[401319744,1768133441676,-500.0,0.00013273,2]
[401319746,1768133441686,-500.0,0.00013273,2]
[401319748,1768133441695,-500.0,0.00013273,2]
[401319750,1768133441704,-500.0,0.00013273,2]
[401319752,1768133441714,-500.0,0.00013273,2]
[401319754,1768133441722,-500.0,0.00013273,2]
[401319756,1768133441732,-500.0,0.00013273,2]
[401319758,1768133441741,-500.0,0.00013273,2]
[401319760,1768133441749,-500.0,0.00013273,2]
[401319762,1768133441758,-500.0,0.00013273,2]
[401319764,1768133441767,-500.29461734,0.00013273,2]
[401319766,1768133441776,-402.502339,0.00013273,2]
[401319767,1768133441786,-500.0,0.00013273,2]
[401319768,1768133441794,-500.0,0.00013273,2]
[401319769,1768133441803,-500.0,0.00013273,2]
[401319770,1768133441813,-495.22027723,0.00013273,2]
[401319772,1768133441823,-500.0,0.00013273,2]
[401319774,1768133441833,-500.0,0.00013273,2]
[401319775,1768133441842,-500.0,0.00013273,2]
[401319776,1768133441851,-500.0,0.00013273,2]
[401319777,1768133441860,-500.0,0.00013273,2]
[401319778,1768133441870,-500.0,0.00013273,2]
[401319779,1768133441880,-300.0,0.00013673,2]
[401319780,1768133441889,-500.0,0.00013698,2]
[401319781,1768133441899,-500.0,0.00013698,2]
[401319782,1768133441908,-500.0,0.00013698,2]
[401319783,1768133441918,-500.0,0.00013698,2]
[401319784,1768133441927,-500.0,0.00013698,2]
[401319785,1768133441936,-500.0,0.00013698,2]
[401319786,1768133441945,-500.0,0.00013698,2]
[401319787,1768133441955,-500.0,0.00013698,2]
[401319788,1768133441965,-500.0,0.00013698,2]
[401319789,1768133441974,-500.0,0.00013698,2]
[401319790,1768133441983,-500.0,0.00013698,2]
[401319791,1768133441993,-500.0,0.00013698,2]
[401319792,1768133442002,-500.0,0.00013698,2]
[401319793,1768133442011,-374.07409846,0.00013698,2]
[401319794,1768133442020,-500.0,0.00013698,2]
[401319795,1768133442029,-500.0,0.00013698,2]
[401319796,1768133442038,-500.0,0.00013698,2]
[401319797,1768133442048,-500.0,0.00013698,2]
[401319798,1768133442056,-500.0,0.00013698,2]
[401319799,1768133442065,-500.0,0.00013698,2]
[401319800,1768133442075,-500.0,0.00013698,2]
[401319801,1768133442084,-500.0,0.00013698,2]
[401319802,1768133442094,-500.0,0.00013698,2]
[401319803,1768133442183,-500.0,0.00013698,2]
[401319804,1768133442205,-560.87931796,0.00013698,2]
[401319805,1768133442214,-500.0,0.00013698,2]
[401319806,1768133442224,-500.0,0.00013698,2]
[401319807,1768133442233,-500.0,0.00013698,2]
[401319808,1768133442242,-500.0,0.00013698,2]
[401319809,1768133442252,-500.0,0.00013698,2]
[401319810,1768133442261,-500.0,0.00013698,2]
[401319811,1768133442271,-500.0,0.00013698,2]
[401319812,1768133442282,-534.57834013,0.00013698,2]
[401319813,1768133442293,-1000.0,0.00013698,2]
[401319814,1768133442303,-1000.0,0.00013698,2]
[401319815,1768133442313,-1000.0,0.00013698,2]
[401319816,1768133442322,-1000.0,0.00013698,2]
[401319817,1768133442332,-1000.0,0.00013698,2]
[401319818,1768133442341,-1000.0,0.00013698,2]
[401319819,1768133442351,-593.71236514,0.00013698,2]
[401319820,1768133442361,-150.1,0.00013699,2]
[401319821,1768133442370,-2398.013274,0.00013699,2]
[401319822,1768133442379,-500.0,0.00013699,2]
[401319823,1768133442388,-500.0,0.00013699,2]
[401319824,1768133442397,-500.0,0.00013699,2]
[401319825,1768133442407,-500.0,0.00013699,2]
[401319826,1768133442416,-500.0,0.00013699,2]
[401319827,1768133442425,-252.75899042,0.00013699,2]
[401319828,1768133442435,-159.05967354,0.00013699,2]
[401319829,1768133442445,-500.0,0.00013699,2]
[401319830,1768133442455,-192.77974704,0.00013699,2]
[401319831,1768133442464,-500.0,0.00013699,2]
[401319832,1768133442474,-500.0,0.00013699,2]
[401319833,1768133442485,-500.0,0.00013699,2]
[401319834,1768133442493,-252.81793801,0.00013699,2]
[401319835,1768133442502,-500.0,0.00013699,2]
[401319836,1768133442512,-500.0,0.00013699,2]
[401319837,1768133442522,-500.0,0.00013699,2]
[401319838,1768133442531,-500.0,0.00013699,2]
[401319839,1768133442540,-500.0,0.00013699,2]
[401319840,1768133442549,-500.0,0.00013699,2]
[401319841,1768133442561,-500.0,0.00013699,2]
[401319842,1768133442570,-500.0,0.00013699,2]
[401319843,1768133442580,-500.93038909,0.00013699,2]
[401319844,1768133442589,-250.0,0.00013699,2]
[401319845,1768133442599,-500.0,0.00013699,2]
[401319846,1768133442609,-500.0,0.00013699,2]
[401319847,1768133442619,-500.0,0.00013699,2]
[401319848,1768133442629,-500.0,0.00013699,2]
[401319849,1768133442639,-500.0,0.00013699,2]
[401319850,1768133442649,-500.0,0.00013699,2]
[401319851,1768133442658,-500.0,0.00013699,2]
[401319852,1768133442668,-500.31275461,0.00013699,2]
[401319853,1768133442678,-500.0,0.00013699,2]
[401319854,1768133442688,-500.0,0.00013699,2]
[401319855,1768133442700,-413.61388111,0.00013699,2]
[401319856,1768133442710,-504.31837873,0.00013699,2]
[401319857,1768133442720,-500.0,0.00013699,2]
[401319858,1768133442730,-611.85295008,0.00013699,2]
[401319859,1768133442740,-500.0,0.00013699,2]
[401319860,1768133442749,-500.0,0.00013699,2]
[401319861,1768133442759,-500.0,0.00013699,2]
[401319862,1768133442769,-500.0,0.00013699,2]
[401319863,1768133442778,-500.0,0.00013699,2]
[401319864,1768133442787,-500.0,0.00013699,2]
[401319865,1768133442796,-500.0,0.00013699,2]
[401319866,1768133442806,-500.0,0.00013699,2]
[401319867,1768133442815,-500.0,0.00013699,2]
[401319868,1768133442824,-500.0,0.00013699,2]
[401319869,1768133442834,-500.0,0.00013699,2]
[401319870,1768133442843,-500.0,0.00013699,2]
[401319871,1768133442853,-500.0,0.00013699,2]
[401319872,1768133442862,-500.0,0.00013699,2]
[401319873,1768133442871,-500.0,0.00013699,2]
[401319874,1768133442880,-500.0,0.00013699,2]
[401319875,1768133442890,-500.0,0.00013699,2]
[401319876,1768133442899,-500.0,0.00013699,2]
[401319877,1768133442909,-500.0,0.00013699,2]
[401319878,1768133442918,-500.0,0.00013699,2]
[401319879,1768133442928,-500.0,0.00013699,2]
[401319880,1768133442937,-500.0,0.00013699,2]
[401319881,1768133442946,-295.9151759,0.00013699,2]
[401319882,1768133442956,-500.0,0.00013699,2]
[401319883,1768133442965,-268.13097792,0.00013699,2]
[401319884,1768133442974,-500.0,0.00013699,2]
[401319885,1768133442983,-501.32276914,0.00013699,2]
[401319886,1768133442993,-345.73139261,0.00013699,2]
[401319887,1768133443002,-500.0,0.00013699,2]
[401319888,1768133443012,-500.0,0.00013699,2]
[401319889,1768133443021,-500.0,0.00013699,2]
[401319890,1768133443030,-500.0,0.00013699,2]
[401319891,1768133443040,-500.0,0.00013699,2]
[401319892,1768133443049,-500.0,0.00013699,2]
[401319893,1768133443058,-500.0,0.00013699,2]
[401319894,1768133443067,-500.0,0.00013699,2]
[401319895,1768133443077,-211.79,0.000137,2]
[401319896,1768133443086,-1000.0,0.00013821,2]
[401319898,1768133443096,-1000.0,0.00013821,2]
[401319900,1768133443105,-1000.0,0.00013821,2]
[401319901,1768133443115,-1000.0,0.00013821,2]
[401319902,1768133443124,-1000.0,0.00013821,2]
[401319903,1768133443134,-1000.0,0.00013821,2]
[401319905,1768133443143,-501.6206004,0.00013821,2]
[401319906,1768133443151,-1002.2053155,0.00013821,2]
[401319907,1768133443161,-178.09775665,0.00013821,2]
[401319908,1768133443170,-1000.0,0.00013821,2]
[401319909,1768133443179,-1000.0,0.00013821,2]
[401319910,1768133443188,-502.34729237,0.00013821,2]
[401319911,1768133443198,-1000.0,0.00013821,2]
[401319912,1768133443207,-1000.0,0.00013821,2]
[401319913,1768133443216,-1000.0,0.00013821,2]
[401319914,1768133443226,-1000.0,0.00013821,2]
[401319915,1768133443236,-1000.0,0.00013821,2]
[401319916,1768133443245,-1000.0,0.00013821,2]
[401319917,1768133443254,-1000.0,0.00013821,2]
[401319918,1768133443264,-1000.0,0.00013821,2]
[401319919,1768133443274,-506.38443798,0.00013821,2]
[401319920,1768133443284,-1046.83647191,0.00013821,2]
[401319921,1768133443293,-1000.0,0.00013821,2]
[401319922,1768133443303,-1113.91769968,0.00013821,2]
[401319923,1768133443312,-1000.0,0.00013821,2]
[401319924,1768133443321,-1000.0,0.00013821,2]
[401319925,1768133443332,-1000.0,0.00013821,2]
[401319926,1768133443341,-1000.0,0.00013821,2]
[401319927,1768133443349,-1000.0,0.00013821,2]
[401319928,1768133443358,-1000.0,0.00013821,2]
[401319929,1768133443366,-501.21467235,0.00013821,2]
[401319930,1768133443375,-1000.0,0.00013821,2]
[401319931,1768133443384,-1000.0,0.00013821,2]
[401319932,1768133443393,-1000.0,0.00013821,2]
[401319933,1768133443402,-1000.0,0.00013821,2]
[401319934,1768133443411,-1000.0,0.00013821,2]
[401319935,1768133443420,-973.2526551,0.00013821,2]
[401319936,1768133443428,-500.76042299,0.00013821,2]
[401319937,1768133443437,-1000.0,0.00013821,2]
[401319938,1768133443446,-1000.0,0.00013821,2]
[401319939,1768133443455,-1000.0,0.00013821,2]
[401319940,1768133443464,-877.75810228,0.00013821,2]
[401319941,1768133443472,-1000.0,0.00013821,2]
[401319942,1768133443481,-204.07351011,0.00013821,2]
[401319943,1768133443490,-1000.0,0.00013821,2]
[401319944,1768133443499,-1000.0,0.00013821,2]
[401319945,1768133443508,-500.0,0.00014014,2]
[401319946,1768133443518,-500.0,0.00014014,2]
[401319947,1768133443527,-176.23516734,0.00014014,2]
[401319948,1768133443537,-500.0,0.00014014,2]
[401319949,1768133443546,-500.0,0.00014014,2]
[401319950,1768133443555,-171.65605742,0.00014014,2]
[401319951,1768133443568,-1613.0,0.00014014,2]
[401319952,1768133443577,-500.0,0.00014151,2]
[401319953,1768133443586,-503.05659276,0.00014151,2]
[401319954,1768133443595,-500.0,0.00014151,2]
[401319955,1768133443606,-598.52490689,0.00014151,2]
[401319956,1768133443617,-211.79,0.000142,2]
[401319957,1768133443626,-600.0,0.00014221,2]
[401319958,1768133443637,-1000.0,0.00014247,2]
[401319959,1768133443647,-1000.0,0.00014247,2]
[401319960,1768133443656,-313.64870907,0.00014247,2]
[401319961,1768133443665,-1000.0,0.00014247,2]
[401319962,1768133443674,-1000.0,0.00014247,2]
[401319963,1768133443684,-1000.0,0.00014247,2]
[401319964,1768133443694,-283.3787305,0.00014247,2]
[401319965,1768133443703,-1000.0,0.00014247,2]
[401319966,1768133443713,-875.35271766,0.00014247,2]
[401319968,1768133443723,-1000.0,0.00014247,2]
[401319969,1768133443732,-1000.0,0.00014247,2]
[401319970,1768133443742,-1000.0,0.00014247,2]
[401319971,1768133443752,-1000.0,0.00014247,2]
[401319973,1768133443761,-1001.8641087,0.00014247,2]
[401319975,1768133443770,-171.67593478,0.00014247,2]
[401319976,1768133443780,-1000.0,0.00014247,2]
[401319977,1768133443790,-1000.0,0.00014247,2]
[401319978,1768133443799,-1000.0,0.00014247,2]
[401319979,1768133443808,-1000.0,0.00014247,2]
[401319980,1768133443818,-1000.0,0.00014247,2]
[401319981,1768133443827,-1000.0,0.00014247,2]
[401319982,1768133443837,-1000.0,0.00014247,2]
[401319983,1768133443846,-1000.0,0.00014247,2]
[401319984,1768133443858,-1000.0,0.00014247,2]
[401319985,1768133443868,-1000.0,0.00014247,2]
[401319986,1768133443877,-1002.38932755,0.00014247,2]
[401319988,1768133443886,-661.478767,0.00014247,2]
[401319989,1768133443896,-469.53593685,0.00014247,2]
[401319990,1768133443905,-1000.0,0.00014247,2]
[401319991,1768133443914,-1029.61129365,0.00014247,2]
[401319992,1768133443923,-1000.0,0.00014247,2]
[401319993,1768133443933,-1000.0,0.00014247,2]
[401319994,1768133443943,-1000.0,0.00014247,2]
[401319995,1768133443952,-1000.0,0.00014247,2]
[401319996,1768133443962,-1000.0,0.00014247,2]
[401319997,1768133443972,-710.18768542,0.00014247,2]
[401319998,1768133443983,-1000.0,0.00014247,2]
[401319999,1768133443992,-1000.0,0.00014247,2]
[401320000,1768133444002,-1000.0,0.00014247,2]
[401320001,1768133444012,-1000.0,0.00014247,2]
[401320002,1768133444022,-1000.0,0.00014247,2]
[401320003,1768133444032,-1000.0,0.00014247,2]
[401320004,1768133444041,-1000.0,0.00014247,2]
[401320005,1768133444051,-1003.14554213,0.00014247,2]
[401320006,1768133444061,-1000.0,0.00014247,2]
[401320007,1768133444071,-443.77041137,0.00014247,2]
[401320008,1768133444080,-638.41119879,0.00014247,2]
[401320009,1768133444089,-1000.0,0.00014247,2]
[401320010,1768133444098,-1000.0,0.00014247,2]